bitfinex-derivatives/quotes_BNBF0:USTF0_20251010
["timestamp","ask_amount","ask_price","bid_price","bid_amount"]
[1760123863626,0.14150052,1229.4,1227.9,0.54232128]
[1760123863926,1.94673086,1233.1,1228.0,0.54232128]
[1760123864126,0.14148958,1229.4,1228.1,0.54232128]
[1760123864326,0.14148958,1229.4,1228.2,1.14083381]
[1760123864524,1.94673086,1233.3,1228.3,0.54218913]
[1760123864729,0.14146083,1229.9,1228.4,0.54218913]
[1760123864927,1.94673086,1233.5,1228.5,0.54218913]
[1760123865126,1.94673086,1233.5,1228.6,0.54218913]
[1760123865427,0.14143955,1229.9,1228.7,0.5423431]
[1760123865626,1.94673086,1233.5,1228.2,0.59864468]
[1760123865826,0.14142633,1232.3,1228.3,0.54234289]
[1760123866131,0.14142633,1232.3,1228.4,0.54234289]
[1760123866326,0.14142633,1232.3,1228.5,0.54234289]
[1760123866533,0.14142633,1232.3,1228.6,0.54234289]
[1760123866731,0.14142633,1232.3,1228.7,0.54234289]
[1760123866928,0.14142633,1232.3,1228.8,0.54234289]
[1760123867230,0.14142633,1232.3,1228.1,0.59864468]
[1760123867429,0.14142633,1232.3,1228.2,0.54214108]
[1760123867732,0.14142633,1232.3,1228.3,0.54214108]
[1760123867933,0.14142633,1232.3,1228.4,0.54214108]
[1760123868228,0.14142633,1232.3,1228.5,0.54214108]
[1760123868433,0.14142633,1232.3,1228.6,0.54214108]
[1760123868632,0.14142633,1232.3,1228.7,0.54214108]
[1760123868833,0.14142633,1232.3,1228.8,0.54214108]
[1760123869034,0.14142633,1232.3,1228.9,0.54214108]
[1760123869334,0.14142633,1232.3,1228.2,0.59864468]
[1760123869528,0.14142633,1232.3,1228.3,1.14092774]
[1760123869734,0.14142633,1232.3,1228.4,1.14092774]
[1760123869934,0.14142633,1232.3,1228.5,0.54228306]
[1760123870235,0.14142633,1232.3,1228.6,0.54228306]
[1760123870434,0.14142633,1232.3,1228.7,0.54228306]
[1760123870630,0.14142633,1232.3,1228.8,0.54228306]
[1760123870832,0.14142633,1232.3,1228.9,0.54228306]
[1760123871031,0.14142633,1232.3,1229.0,0.54228306]
[1760123871232,0.14142633,1232.3,1228.5,0.59864468]
[1760123871534,0.14142633,1232.3,1228.6,0.54183947]
[1760123871732,0.14142633,1232.3,1228.7,0.54183947]
[1760123871932,0.14142633,1232.3,1228.8,0.54183947]
[1760123872133,0.14142633,1232.3,1228.9,0.54183947]
[1760123872330,0.14142633,1232.3,1229.0,0.54173441]
[1760123872535,0.14142633,1232.3,1228.3,0.59864468]
[1760123872733,0.14142633,1232.3,1228.4,1.14037723]
[1760123873034,0.14142633,1232.3,1228.5,0.54173255]
[1760123873231,0.14142633,1232.3,1228.6,0.54173255]
[1760123873432,0.14142633,1232.3,1228.7,0.54173255]
[1760123873637,0.14142633,1232.3,1228.8,0.54173255]
[1760123873936,0.14142633,1232.3,1228.9,0.54173255]
[1760123874134,0.14142633,1232.3,1229.0,0.54173255]
[1760123874433,0.14142633,1232.3,1229.1,0.54166862]
[1760123874733,0.14142633,1232.3,1229.2,0.54166862]
[1760123874937,0.14142633,1232.3,1229.3,0.54164368]
[1760123875139,0.14142633,1232.3,1228.8,0.59864468]
[1760123875444,0.14142633,1232.3,1228.9,0.54132345]
[1760123875639,0.14142633,1232.3,1229.0,0.54132345]
[1760123875839,0.14142633,1232.3,1229.1,0.54132345]
[1760123876035,0.14142633,1232.3,1229.2,0.54132345]
[1760123876338,0.14142633,1232.3,1229.3,0.54169131]
[1760123876539,0.14142633,1232.3,1228.8,0.59864468]
[1760123876740,0.14142633,1232.3,1228.9,0.54169125]
[1760123876940,0.14142633,1232.3,1229.0,0.54169125]
[1760123877140,0.14142633,1232.3,1229.1,0.54169125]
[1760123877334,0.14142633,1232.3,1229.2,0.54169125]
[1760123877537,0.14142633,1232.3,1229.3,0.54169125]
[1760123877738,0.14142633,1232.3,1228.8,0.59864468]
[1760123877937,0.14142633,1232.3,1228.9,0.54175886]
[1760123878136,0.14142633,1232.3,1229.0,0.54175886]
[1760123878338,0.14142633,1232.3,1229.1,0.54175886]
[1760123878539,0.14142633,1232.3,1229.2,0.54175886]
[1760123878738,0.14142633,1232.3,1228.7,0.59864468]
[1760123879046,0.14142633,1232.3,1228.8,0.54180367]
[1760123879242,0.14142633,1232.3,1228.9,0.54180367]
[1760123879542,0.14142633,1232.3,1229.0,0.54196135]
[1760123879741,0.14142633,1232.3,1229.1,0.54194601]
[1760123879942,0.14142633,1232.3,1229.2,0.54194601]
[1760123880140,0.14142633,1232.3,1229.3,0.54194601]
[1760123880341,0.14142633,1232.3,1228.6,0.59864468]
[1760123880539,0.14142633,1232.3,1228.7,0.54187127]
[1760123880843,0.14142633,1232.3,1228.8,1.14051595]
[1760123881043,0.14142633,1232.3,1228.9,0.54187127]
[1760123881240,0.14142633,1232.3,1229.0,0.54187127]
[1760123881440,0.14142633,1232.3,1229.1,0.54187127]
[1760123881638,0.14142633,1232.3,1229.2,0.54187127]
[1760123881840,0.14142633,1232.3,1228.8,0.59864468]
[1760123881841,0.14142633,1232.3,1229.3,0.54187127]
[1760123882044,0.14142633,1232.3,1229.4,0.54187127]
[1760123882244,0.14142633,1232.3,1228.8,0.59864468]
[1760123882445,0.14142633,1232.3,1228.9,0.54166606]
[1760123882644,0.14142633,1232.3,1229.0,0.54166606]
[1760123882846,0.14142633,1232.3,1229.1,0.54166606]
[1760123883046,0.14142633,1232.3,1229.2,0.54166606]
[1760123883341,0.14142633,1232.3,1229.3,0.54166606]
[1760123883542,0.14142633,1232.3,1229.4,0.54166606]
[1760123883742,0.14142633,1232.3,1229.5,0.54166606]
[1760123883946,0.14142633,1232.3,1228.9,0.59864468]
[1760123884244,0.14142633,1232.3,1229.0,0.53899454]
[1760123884443,0.14142633,1232.3,1229.1,0.53899454]
[1760123884647,0.14142633,1232.3,1229.2,0.53899454]
[1760123884948,0.14142633,1232.3,1229.3,0.53899454]
[1760123885243,0.14142633,1232.3,1229.4,0.53899454]
[1760123885448,0.14142633,1232.3,1228.7,0.59864468]
[1760123885649,0.14142633,1232.3,1228.8,0.53874729]
[1760123885947,0.14142633,1232.3,1228.9,0.53874729]
[1760123886146,0.14142633,1232.3,1229.0,0.53874729]
[1760123886347,0.14142633,1232.3,1229.1,0.53874729]
[1760123886548,0.14142633,1232.3,1229.2,0.53874729]
[1760123886847,0.14142633,1232.3,1228.7,0.59864468]
[1760123887049,0.14142633,1232.3,1228.8,0.53871573]
[1760123887347,0.14142633,1232.3,1228.9,0.53871573]
[1760123887643,0.14142633,1232.3,1229.0,0.53871573]
[1760123887844,0.14142633,1232.3,1229.1,0.53871573]
[1760123888043,0.14142633,1232.3,1229.2,0.53871573]
[1760123888247,0.14142633,1232.3,1229.3,0.53871573]
[1760123888447,0.14142633,1232.3,1229.4,0.53871573]
[1760123888644,0.14142633,1232.3,1228.8,0.59864468]
[1760123888847,0.14142633,1232.3,1228.9,0.53861695]
[1760123889045,0.14142633,1232.3,1229.0,0.53861695]
[1760123889243,0.14142633,1232.3,1229.1,0.53861695]
[1760123889445,0.14142633,1232.3,1229.2,0.53861695]
[1760123889644,0.14142633,1232.3,1229.3,0.53861695]
[1760123889948,0.14142633,1232.3,1229.4,0.53861695]
[1760123890150,0.14142633,1232.3,1229.5,0.53868416]
[1760123890444,0.14142633,1232.3,1228.7,0.59864468]
[1760123890748,0.14142633,1232.3,1228.8,0.53860369]
[1760123890945,0.14142633,1232.3,1228.9,0.53860369]
[1760123891145,0.14142633,1232.3,1229.0,0.53860369]
[1760123891348,0.14142633,1232.3,1229.1,0.53860369]
[1760123891553,0.14142633,1232.3,1228.8,0.59864468]
[1760123891745,0.14142633,1232.3,1228.9,0.53876128]
[1760123891950,0.14142633,1232.3,1229.0,0.53876128]
[1760123892149,0.14142633,1232.3,1229.1,0.53876128]
[1760123892351,0.14142633,1232.3,1229.2,0.53876128]
[1760123892554,0.14142633,1232.3,1229.3,0.53876128]
[1760123892748,0.14142633,1232.3,1228.7,0.59864468]
[1760123892953,0.14142633,1232.3,1228.8,0.53894995]
[1760123893153,0.14142633,1232.3,1228.9,0.53894995]
[1760123893354,0.14142633,1232.3,1228.5,0.59864468]
[1760123893355,0.14142633,1232.3,1229.0,0.53894995]
[1760123893553,0.14142633,1232.3,1228.5,0.59864468]
[1760123893750,0.14142633,1232.3,1228.6,0.53925473]
[1760123893950,0.14142633,1232.3,1228.7,0.53925473]
[1760123894249,0.14142633,1232.3,1228.8,0.53925473]
[1760123894452,0.14142633,1232.3,1228.9,0.53925473]
[1760123894651,0.14142633,1232.3,1229.0,0.53925473]
[1760123894858,0.14142633,1232.3,1229.1,0.53925473]
[1760123895157,0.14142633,1232.3,1228.6,0.59864468]
[1760123895455,0.14142633,1232.3,1228.7,0.53948539]
[1760123895757,0.14142633,1232.3,1228.4,0.59864468]
[1760123896052,0.14142633,1232.3,1228.5,0.53960546]
[1760123896256,0.14142633,1232.3,1228.6,0.53960546]
[1760123896457,0.14142633,1232.3,1228.1,0.59864468]
[1760123896658,0.14142633,1232.3,1228.2,0.53990376]
[1760123896958,0.14142633,1232.3,1228.3,0.53990376]
[1760123897259,0.14142633,1232.3,1227.8,0.59864468]
[1760123897459,0.14142633,1232.3,1227.9,0.54024672]
[1760123897653,0.14142633,1232.3,1228.0,0.54024672]
[1760123897854,0.14142633,1232.3,1228.1,0.54024672]
[1760123898158,0.14142633,1232.3,1228.2,0.54024672]
[1760123898452,0.14142633,1232.3,1227.8,0.59864468]
[1760123898655,0.14142633,1232.3,1227.9,0.54048783]
[1760123898862,0.14142633,1232.3,1228.0,0.54048783]
[1760123899059,0.14142633,1232.3,1228.1,0.54048783]
[1760123899255,0.14142633,1232.3,1228.2,0.54048783]
[1760123899456,0.14142633,1232.3,1227.8,0.59864468]
[1760123899756,0.14142633,1232.3,1227.9,0.54076707]
[1760123900056,0.14142633,1232.3,1228.0,0.54076707]
[1760123900256,0.14142633,1232.3,1228.1,0.54076707]
[1760123900459,0.14142633,1232.3,1227.6,0.59864468]
[1760123900663,0.14142633,1232.3,1227.7,0.54106712]
[1760123900856,0.14142633,1232.3,1227.8,0.54106712]
[1760123901160,0.14142633,1232.3,1227.9,0.54106712]
[1760123901360,0.14142633,1232.3,1228.0,0.54106712]
[1760123901655,0.14142633,1232.3,1228.1,0.54106712]
[1760123901861,1.94673086,1231.9,1227.5,0.59864468]
[1760123902157,1.94673086,1231.9,1227.6,1.14006687]
[1760123902356,1.94673086,1231.9,1227.7,0.54142219]
[1760123902556,1.94673086,1231.9,1227.5,0.59864468]
[1760123902557,1.94673086,1231.9,1227.8,0.54142219]
[1760123902760,1.94673086,1231.9,1227.9,0.54142219]
[1760123902959,0.14142633,1232.3,1228.0,0.54142219]
[1760123903264,0.14142633,1232.3,1228.1,0.54142219]
[1760123903564,0.14142633,1232.3,1228.2,0.54142219]
[1760123903758,0.14142633,1232.3,1228.3,0.54142219]
[1760123903962,0.14142633,1232.3,1228.4,0.54142219]
[1760123904158,0.14142633,1232.3,1228.0,0.59864468]
[1760123904363,0.14142633,1232.3,1228.1,0.54249114]
[1760123904563,0.14142633,1232.3,1228.2,0.54249114]
[1760123904761,0.14142633,1232.3,1227.7,0.59864468]
[1760123904960,0.14142633,1232.3,1227.8,0.54100639]
[1760123905163,0.14142633,1232.3,1227.9,0.54100639]
[1760123905462,0.14142633,1232.3,1227.6,0.59864468]
[1760123905661,0.14142633,1232.3,1227.7,0.54148857]
[1760123905860,1.94673086,1231.7,1227.8,0.54148857]
[1760123906063,1.94673086,1231.7,1227.4,0.59864468]
[1760123906261,1.94673086,1231.8,1227.5,0.54178834]
[1760123906465,1.94673086,1231.8,1227.6,0.54178834]
[1760123906664,1.94673086,1231.8,1227.7,0.54178834]
[1760123906961,1.94673086,1232.1,1226.9,0.59864468]
[1760123907163,1.94673086,1232.1,1227.0,1.14046605]
[1760123907363,2.08815719,1232.3,1227.1,0.54182137]
[1760123907560,2.08815719,1232.3,1227.2,0.54182137]
[1760123907861,1.94673086,1232.2,1227.3,0.54182137]
[1760123908064,1.94673086,1232.2,1227.4,0.54182137]
[1760123908265,2.08815719,1232.3,1226.7,0.59864468]
[1760123908463,2.08815719,1232.3,1226.8,0.54196364]
[1760123908661,1.94673086,1232.2,1226.9,1.14060832]
[1760123908865,1.94673086,1232.2,1227.0,0.54196364]
[1760123909162,1.94673086,1232.2,1227.1,0.54196364]
[1760123909361,1.94673086,1232.2,1227.2,0.54196364]
[1760123909561,1.94673086,1232.2,1227.3,0.54196364]
[1760123909764,2.08815719,1232.3,1227.4,0.54196364]
[1760123909961,2.08815719,1232.3,1227.5,0.54196364]
[1760123910165,2.08815719,1232.3,1227.6,0.54175981]
[1760123910363,2.08815719,1232.3,1226.9,0.59864468]
[1760123910566,2.08815719,1232.3,1227.0,0.54161116]
[1760123910767,2.08815719,1232.3,1227.1,0.54161116]
[1760123911067,2.08815719,1232.3,1227.2,0.54161116]
[1760123911267,1.94673086,1232.2,1227.3,0.54161116]
[1760123911467,1.94673086,1232.2,1227.4,0.54161116]
[1760123911663,2.08815719,1232.3,1227.5,0.54161116]
[1760123911868,2.08815719,1232.3,1227.6,0.54161116]
[1760123912166,2.08815719,1232.3,1226.9,0.59864468]
[1760123912364,0.14142633,1232.3,1227.0,0.54132451]
[1760123912668,0.14142633,1232.3,1227.1,0.54132451]
[1760123912869,0.14142633,1232.3,1227.2,0.54132451]
[1760123913068,0.14142633,1232.3,1227.3,0.54132451]
[1760123913266,0.14142633,1232.3,1227.4,0.54132451]
[1760123913464,0.14142633,1232.3,1227.5,0.54132451]
[1760123913669,0.14142633,1232.3,1227.6,0.54132451]
[1760123913965,0.14142633,1232.3,1227.0,0.59864468]
[1760123914165,0.14142633,1232.3,1227.1,0.53537903]
[1760123914369,1.94673086,1232.0,1227.2,0.53537903]
[1760123914666,1.94673086,1232.0,1227.3,0.53537903]
[1760123914868,1.94673086,1232.2,1227.4,0.53537903]
[1760123915065,1.94673086,1232.2,1227.5,0.53537903]
[1760123915267,1.94673086,1232.2,1227.1,0.59864468]
[1760123915464,1.94673086,1231.5,1227.2,0.53518681]
[1760123915664,1.94673086,1231.5,1227.3,0.53518681]
[1760123915969,1.94673086,1231.7,1227.4,0.53518681]
[1760123916265,1.94673086,1231.7,1227.5,0.53518681]
[1760123916473,1.94673086,1231.8,1227.1,0.59864468]
[1760123916767,1.94673086,1231.8,1227.2,0.5350478]
[1760123916966,1.94673086,1232.1,1227.3,0.5350478]
[1760123917166,1.94673086,1232.1,1227.4,0.5350478]
[1760123917468,1.94673086,1232.1,1227.5,0.5350478]
[1760123917766,1.94673086,1232.1,1226.9,0.59864468]
[1760123918069,1.94673086,1231.1,1227.0,0.5349993]
[1760123918269,1.94673086,1231.1,1226.5,0.59864468]
[1760123918466,1.94673086,1230.8,1226.6,0.53493297]
[1760123918764,1.94673086,1230.8,1226.7,0.53493297]
[1760123918968,1.94673086,1231.3,1226.8,0.53493297]
[1760123919166,1.94673086,1231.3,1226.3,0.59864468]
[1760123919368,1.94673086,1231.3,1226.4,0.53461328]
[1760123919564,1.94673086,1231.3,1226.5,0.53461328]
[1760123919769,1.94673086,1231.3,1226.6,0.53461328]
[1760123919967,1.94673086,1231.3,1226.7,0.53461328]
[1760123920271,1.94673086,1231.6,1226.8,0.53461328]
[1760123920571,1.94673086,1231.7,1226.2,0.59864468]
[1760123920771,1.94673086,1231.7,1226.3,0.53429451]
[1760123921070,1.94673086,1231.2,1226.4,0.53429451]
[1760123921271,1.94673086,1231.2,1226.5,0.53429451]
[1760123921572,1.94673086,1230.7,1226.2,0.59864468]
[1760123921768,1.94673086,1230.7,1226.3,0.5340082]
[1760123922071,1.94673086,1230.7,1226.4,0.5340082]
[1760123922268,1.94673086,1230.7,1226.0,0.59864468]
[1760123922468,1.94673086,1230.7,1226.1,0.53364583]
[1760123922673,1.94673086,1230.8,1226.2,0.53364583]
[1760123922870,1.94673086,1230.8,1226.3,0.53364583]
[1760123923070,1.94673086,1230.8,1226.4,0.53364583]
[1760123923269,1.94673086,1230.8,1226.0,0.59864468]
[1760123923471,1.94673086,1230.8,1226.1,0.5332762]
[1760123923673,1.94673086,1230.8,1226.2,0.5332762]
[1760123923873,1.94673086,1230.8,1226.3,0.5332762]
[1760123924073,1.94673086,1230.8,1226.4,0.5332762]
[1760123924274,1.94673086,1230.8,1225.9,0.59864468]
[1760123924473,1.94673086,1230.8,1226.0,0.53291743]
[1760123924676,1.94673086,1230.9,1226.1,0.53291743]
[1760123924877,1.94673086,1230.9,1226.2,0.53291743]
[1760123925074,1.94673086,1230.9,1226.3,0.53291743]
[1760123925275,1.94673086,1231.2,1225.8,0.59864468]
[1760123925475,1.94673086,1231.2,1225.9,0.53260124]
[1760123925679,1.94673086,1231.2,1226.0,0.53260124]
[1760123925878,1.94673086,1231.2,1226.1,0.53260124]
[1760123926074,1.94673086,1231.2,1226.2,0.53260124]
[1760123926274,1.94673086,1231.2,1226.3,0.53260124]
[1760123926478,1.94673086,1231.2,1225.8,0.59864468]
[1760123926678,1.94673086,1231.2,1225.9,0.53230578]
[1760123926875,1.94673086,1231.2,1226.0,0.53230578]
[1760123927074,1.94673086,1231.2,1226.1,0.53230578]
[1760123927279,1.94673086,1231.2,1226.2,0.53230578]
[1760123927479,1.94673086,1231.2,1225.8,0.59864468]
[1760123927681,1.94673086,1231.2,1225.9,0.53203183]
[1760123927880,1.94673086,1231.0,1226.0,1.13067651]
[1760123928077,1.94673086,1231.0,1225.5,0.59864468]
[1760123928377,1.94673086,1231.1,1225.6,0.53209025]
[1760123928576,1.94673086,1231.1,1225.7,0.53209025]
[1760123928780,1.94673086,1231.1,1225.8,0.53209025]
[1760123928978,1.94673086,1231.1,1225.9,0.53209025]
[1760123929281,1.94673086,1231.1,1225.4,0.59864468]
[1760123929477,1.94673086,1231.3,1225.5,0.53135647]
[1760123929780,1.94673086,1231.3,1225.1,0.8075515]
[1760123929781,1.94673086,1231.3,1225.6,0.53135647]
[1760123929981,1.94673086,1231.6,1225.7,0.53135647]
[1760123930182,1.94673086,1231.6,1225.8,0.53135647]
[1760123930381,1.94673086,1231.6,1225.9,0.53135647]
[1760123930582,1.94673086,1231.6,1225.3,0.59864468]
[1760123930877,1.94673086,1231.6,1225.4,0.53100165]
[1760123931079,1.94673086,1232.2,1225.6,0.59864468]
[1760123931279,1.94673086,1232.2,1225.7,0.53100165]
[1760123931482,1.94673086,1232.1,1225.8,0.53100165]
[1760123931778,1.94673086,1231.7,1226.0,0.59864468]
[1760123931982,1.94673086,1231.7,1226.1,1.12964633]
[1760123932282,1.94673086,1231.6,1226.2,0.53100165]
[1760123932480,1.94673086,1231.6,1225.5,0.59864468]
[1760123932678,1.94673086,1231.6,1225.6,0.53073133]
[1760123932882,1.94673086,1232.2,1225.7,0.53073133]
[1760123933081,1.94673086,1232.2,1225.8,0.53073133]
[1760123933378,1.94673086,1232.1,1225.9,0.53073133]
[1760123933583,1.94673086,1232.1,1226.0,0.53073133]
[1760123933886,1.94673086,1232.2,1226.1,0.53073133]
[1760123934086,1.94673086,1232.2,1226.2,0.53073133]
[1760123934381,1.94673086,1232.0,1225.6,0.59864468]
[1760123934584,1.94673086,1232.0,1225.7,0.53046408]
[1760123934884,1.94673086,1231.8,1225.8,0.53046408]
[1760123935079,1.94673086,1231.7,1226.0,0.59864468]
[1760123935284,1.94673086,1231.7,1226.1,0.53046408]
[1760123935484,1.94673086,1231.7,1226.2,0.53046408]
[1760123935784,1.94673086,1231.8,1226.3,0.53046408]
[1760123935981,1.94673086,1231.8,1226.4,0.53046408]
[1760123936184,1.94673086,1231.8,1226.5,0.53046408]
[1760123936380,1.94673086,1231.8,1226.1,0.59864468]
[1760123936680,1.94673086,1231.8,1226.2,0.53059042]
[1760123936880,1.94673086,1231.8,1226.3,0.53059042]
[1760123937084,1.94673086,1232.0,1226.4,0.53059042]
[1760123937284,1.94673086,1232.0,1226.5,0.53059042]
[1760123937487,1.94673086,1232.0,1226.6,0.53059042]
[1760123937686,1.94673086,1232.2,1225.7,0.59864468]
[1760123937882,1.94673086,1232.2,1225.8,0.53068482]
[1760123938083,1.94673086,1231.8,1225.9,0.53068482]
[1760123938283,1.94673086,1231.8,1226.0,0.53068482]
[1760123938482,1.94673086,1231.8,1226.1,0.53068482]
[1760123938682,1.94673086,1231.8,1226.2,0.53068482]
[1760123938985,1.94673086,1232.1,1226.3,0.53068482]
[1760123939182,1.94673086,1232.1,1226.4,0.53068482]
[1760123939485,1.94673086,1232.1,1226.5,0.53068482]
[1760123939686,1.94673086,1232.1,1226.0,0.59864468]
[1760123939886,1.94673086,1232.1,1226.1,0.53092097]
[1760123940086,1.94673086,1232.1,1226.2,0.53092097]
[1760123940288,1.94673086,1232.1,1226.3,0.53092097]
[1760123940488,1.94673086,1231.7,1226.4,0.53092097]
[1760123940690,1.94673086,1231.7,1225.8,0.59864468]
[1760123940888,1.94673086,1231.7,1225.9,0.53097035]
[1760123941089,1.94673086,1231.9,1226.0,0.53097035]
[1760123941285,1.94673086,1231.9,1226.1,0.53097035]
[1760123941584,1.94673086,1231.9,1226.2,0.53097035]
[1760123941790,1.94673086,1231.9,1226.3,0.53097035]
[1760123941987,1.94673086,1231.9,1225.3,1.21132725]
[1760123941988,1.94673086,1231.9,1226.4,0.53097035]
[1760123942190,1.94673086,1231.9,1226.5,0.53097035]
[1760123942490,1.94673086,1231.5,1226.6,0.53140905]
[1760123942690,1.94673086,1231.5,1226.2,0.59864468]
[1760123942885,1.94673086,1231.5,1226.3,0.53140951]
[1760123943090,1.94673086,1231.5,1226.3,1.13005419]
[1760123943290,1.94673086,1231.7,1226.6,0.59864468]
[1760123943486,1.94673086,1231.7,1226.7,0.53140951]
[1760123943786,2.72981337,1232.1,1226.7,0.53140951]
[1760123943787,2.72981337,1232.1,1226.9,0.59864468]
[1760123943990,2.72981337,1232.1,1227.0,0.53140951]
[1760123944187,2.72981337,1232.1,1227.1,0.53140951]
[1760123944386,2.08815719,1232.3,1227.2,0.53140951]
[1760123944590,2.08815719,1232.3,1227.3,0.53140951]
[1760123944789,0.14142633,1232.3,1226.6,0.59864468]
[1760123944989,0.14142633,1232.3,1226.7,1.14138409]
[1760123945187,0.14142633,1232.3,1226.8,0.54273941]
[1760123945391,1.94673086,1231.9,1226.9,0.54273941]
[1760123945696,1.94673086,1231.9,1227.0,0.54273941]
[1760123945897,1.94673086,1231.7,1226.4,0.59864468]
[1760123946096,1.94673086,1231.7,1226.5,0.54330096]
[1760123946297,1.94673086,1231.7,1226.6,0.54330096]
[1760123946597,2.08815719,1232.3,1226.7,0.54330096]
[1760123946796,2.08815719,1232.3,1226.8,0.54330096]
[1760123947096,2.08815719,1232.3,1226.9,0.54330096]
[1760123947294,0.14142633,1232.3,1227.0,0.54330096]
[1760123947597,0.14142633,1232.3,1227.1,0.54330096]
[1760123947798,2.08815719,1232.3,1227.2,0.54330096]
[1760123947999,2.08815719,1232.3,1227.3,0.54330096]
[1760123948199,1.94673086,1231.8,1227.4,0.54330096]
[1760123948396,1.94673086,1231.8,1227.5,0.54330096]
[1760123948595,1.94673086,1231.8,1227.1,0.59864468]
[1760123948796,1.94673086,1231.8,1227.2,0.54453297]
[1760123948999,1.94673086,1231.8,1227.3,0.54453297]
[1760123949298,1.94673086,1231.9,1227.4,0.54453297]
[1760123949500,1.94673086,1231.9,1227.5,0.54453297]
[1760123949701,1.94673086,1231.9,1227.6,0.54453297]
[1760123949901,1.94673086,1231.9,1227.1,0.59864468]
[1760123950101,1.94673086,1231.9,1227.2,0.54508912]
[1760123950302,1.94673086,1232.2,1227.3,0.54508912]
[1760123950598,1.94673086,1232.2,1227.4,0.54508912]
[1760123950898,1.94673086,1232.0,1227.5,0.54508912]
[1760123951097,1.94673086,1232.0,1227.6,0.54508912]
[1760123951297,1.94673086,1232.0,1227.0,0.59864468]
[1760123951502,1.94673086,1232.0,1227.1,0.54636628]
[1760123951700,1.94673086,1232.0,1227.2,0.54636628]
[1760123951901,1.94673086,1231.8,1227.3,0.54636628]
[1760123952098,1.94673086,1231.8,1227.4,0.54636628]
[1760123952299,1.94673086,1231.7,1227.5,0.54636628]
[1760123952498,1.94673086,1231.7,1227.0,0.59864468]
[1760123952700,1.94673086,1231.7,1227.1,0.5470625]
[1760123952902,1.94673086,1231.7,1227.0,0.59864468]
[1760123952903,1.94673086,1231.8,1227.2,0.5470625]
[1760123953103,1.94673086,1231.8,1227.3,0.5470625]
[1760123953298,0.14142633,1232.3,1227.4,0.5470625]
[1760123953500,0.14142633,1232.3,1226.5,0.59864468]
[1760123953703,0.14142633,1232.3,1226.6,0.54764509]
[1760123953903,1.94673086,1231.9,1226.7,0.54764509]
[1760123954102,1.94673086,1231.9,1224.0,0.14157938]
[1760123954103,1.94673086,1231.9,1226.8,0.54764509]
[1760123954399,1.94673086,1231.6,1226.9,0.54764509]
[1760123954698,1.94673086,1231.6,1227.0,0.54764509]
[1760123954898,1.94673086,1231.6,1227.1,0.54764509]
[1760123955098,1.94673086,1231.6,1226.5,0.59864468]
[1760123955400,1.94673086,1231.6,1226.6,0.54833197]
[1760123955603,1.94673086,1231.5,1226.7,0.54833197]
[1760123955903,1.94673086,1231.5,1226.8,0.54833197]
[1760123956100,1.94673086,1231.5,1226.9,0.54833197]
[1760123956301,1.94673086,1231.5,1227.0,0.54833197]
[1760123956504,1.94673086,1231.4,1227.1,0.54833197]
[1760123956701,1.94673086,1231.4,1226.5,0.59864468]
[1760123956905,1.94673086,1231.4,1226.6,0.54934098]
[1760123957101,1.94673086,1231.5,1226.7,0.54934098]
[1760123957402,1.94673086,1231.5,1226.8,0.54934098]
[1760123957702,1.94673086,1231.5,1226.5,0.59864468]
[1760123957703,1.94673086,1231.4,1226.9,0.54934098]
[1760123957904,1.94673086,1231.4,1227.0,0.54934098]
[1760123958102,1.94673086,1231.3,1227.1,0.54934098]
[1760123958301,1.94673086,1231.3,1226.5,0.59864468]
[1760123958603,1.94673086,1231.2,1226.6,0.54975208]
[1760123958900,1.94673086,1231.2,1226.7,0.54975208]
[1760123959101,1.94673086,1231.3,1226.8,0.54975208]
[1760123959305,1.94673086,1231.3,1226.9,0.54975208]
[1760123959503,1.94673086,1231.3,1227.0,0.54975208]
[1760123959704,1.94673086,1231.5,1227.1,0.54975208]
[1760123959902,1.94673086,1231.5,1226.4,0.59864468]
[1760123960102,1.94673086,1231.5,1226.5,0.5500157]
[1760123960301,1.94673086,1231.5,1226.6,0.5500157]
[1760123960502,1.94673086,1231.5,1226.7,0.5500157]
[1760123960705,1.94673086,1230.9,1226.8,0.5500157]
[1760123961002,1.94673086,1230.9,1226.9,0.5500157]
[1760123961203,1.94673086,1230.9,1226.2,0.59864468]
[1760123961406,1.94673086,1230.9,1226.3,0.55036141]
[1760123961606,1.94673086,1230.9,1226.4,0.55036141]
[1760123961905,1.94673086,1230.9,1226.5,0.55036141]
[1760123962104,1.94673086,1231.0,1226.6,0.55036141]
[1760123962307,1.94673086,1231.0,1226.7,0.55036141]
[1760123962505,1.94673086,1231.0,1226.8,0.55036141]
[1760123962708,1.94673086,1231.0,1226.9,0.55036141]
[1760123962908,1.94673086,1231.0,1227.0,0.55036141]
[1760123963108,1.94673086,1231.0,1227.1,0.55036141]
[1760123963309,1.94673086,1231.0,1226.5,0.59864468]
[1760123963509,1.94673086,1231.0,1226.6,0.55069375]
[1760123963711,1.94673086,1230.9,1226.7,0.55069375]
[1760123964012,1.94673086,1230.9,1226.8,0.55069375]
[1760123964311,1.94673086,1230.7,1226.9,0.55069375]
[1760123964509,1.94673086,1230.7,1226.2,0.59864468]
[1760123964711,1.94673086,1229.9,1226.3,1.14966061]
[1760123965010,1.94673086,1229.9,1226.4,0.55101593]
[1760123965211,1.94673086,1230.2,1226.5,0.55101593]
[1760123965511,1.94673086,1230.2,1226.6,0.55101593]
[1760123965711,1.94673086,1230.1,1226.7,0.55101593]
[1760123965908,1.94673086,1230.1,1226.2,0.59864468]
[1760123966117,1.94673086,1230.1,1226.3,0.55123246]
[1760123966318,1.94673086,1230.1,1226.4,0.55123246]
[1760123966614,1.94673086,1230.1,1225.8,0.59864468]
[1760123966914,1.94673086,1229.3,1225.9,0.5514347]
[1760123967218,1.94673086,1229.4,1226.0,0.5514347]
[1760123967514,1.94673086,1229.4,1226.1,0.5514347]
[1760123967716,1.94673086,1229.4,1226.2,0.5514347]
[1760123967914,1.94673086,1229.4,1226.3,0.5514347]
[1760123968118,1.94673086,1229.4,1226.4,0.5512261]
[1760123968315,1.94673086,1230.2,1226.5,0.5512261]
[1760123968520,1.94673086,1230.2,1226.6,0.5512261]
[1760123968716,1.94673086,1230.1,1226.0,0.59864468]
[1760123968921,1.94673086,1230.1,1226.1,0.551056]
[1760123969216,1.94673086,1230.1,1226.2,0.551056]
[1760123969418,1.94673086,1230.2,1226.3,0.551056]
[1760123969616,1.94673086,1230.2,1226.4,0.551056]
[1760123969920,1.94673086,1230.3,1226.5,0.551056]
[1760123970117,1.94673086,1230.3,1226.6,0.551056]
[1760123970317,1.94673086,1229.9,1226.7,0.551056]
[1760123970521,1.94673086,1229.9,1226.8,0.551056]
[1760123970719,1.94673086,1230.3,1226.9,0.551056]
[1760123970920,1.94673086,1230.3,1227.0,0.551056]
[1760123971120,1.94673086,1230.3,1226.5,0.59864468]
[1760123971320,2.72981337,1230.4,1226.6,1.14956194]
[1760123971519,1.94673086,1229.9,1226.8,0.59864468]
[1760123971718,1.94673086,1229.9,1226.7,0.55091726]
[1760123971719,1.94673086,1229.9,1226.9,1.14956194]
[1760123972022,1.94673086,1230.3,1227.0,0.55091726]
[1760123972226,1.94673086,1230.3,1227.1,0.55091726]
[1760123972424,1.94673086,1230.3,1227.2,0.55091726]
[1760123972623,2.72981337,1230.8,1227.3,0.55091726]